[Event "14th Margaryan Memorial-GM 2024"]
[Site "Yerevan"]
[Date "2024.01.10"]
[Round "3.3"]
[White "Ohanyan, Emin"]
[Black "Shuvalova, Polina"]
[Result "1/2-1/2"]
[ECO "C49"]
[WhiteElo "2456"]
[BlackElo "2475"]
[Annotator "TA"]
[PlyCount "75"]
[EventDate "2024.01.08"]
[EventType "tourn"]
[EventCountry "ARM"]
[SourceTitle "playchess.com"]
[Source "ChessBase"]
[SourceQuality "1"]
[TimeControl "40/5400+30:1800+30"]

{[%evp 18,75,36,20,43,29,52,14,12,25,27,22,37,34,47,48,57,0,33,18,38,22,25,20,57,15,14,20,60,30,19,24,24,27,28,15,24,0,0,0,0,0,0,0,71,67,47,58,94,0,0,0,0,0,0,0,0,0,0,0]} 1. e4 {[%emt 0:00:59]} e5 {[%emt 0:01:35]} 2. Nf3 {[%emt 0:00:04]} Nc6 {[%emt 0:00:03]} 3. Nc3 {[%emt 0:00:06]} Nf6 {[%emt 0:00:05]} 4. Bb5 {[%emt 0:00:03]} Bb4 {[%emt 0:04:15]} 5. O-O {[%emt 0:00:17]} O-O {[%emt 0:00:05]} 6. d3 {[%emt 0:00:14][%cal Bd2d3,Bd3d4][%mdl 32]} Bxc3 {[%emt 0:00:05]} 7. bxc3 {[%emt 0:00:03]} d6 {[%emt 0:00:08]} 8. Bg5 {[%emt 0:00:04]} Ne7 {[%emt 0:01:21] Recently 8...h6 got a lot of attention.} 9. Bxf6 {[%emt 0:19:56]} gxf6 {[%emt 0:00:05]} 10. d4 {[%emt 0:11:26]} Ng6 {[%emt 0:01:03] C49: Four Knights: 4 Bb5 Bb4.} 11. Bd3 {[%emt 0:02:59]} Kh8 {[%emt 0:04:24] [#]} 12. Kh1 $146 {[%emt 0:06:48]} (12. Qd2 {with more complications.} Nf4 13. g3 Rg8 14. Qe3) ({Predecessor:} 12. Qd2 Rg8 13. Kh1 b6 14. Bc4 Be6 15. Bxe6 fxe6 16. Rae1 Qe8 17. Ng1 Qa4 18. Nh3 Qxa2 {½-½ Inarkiev,E (2692)-Sadhwani,R (2448) Moscow Aeroflot op-A 18th 2019 (4)}) 12... Bg4 {[%emt 0:03:04]} 13. h3 {[%emt 0:02:44]} Bd7 {[%emt 0:00:10]} 14. Kh2 {[%emt 0:01:28]} c6 {[%emt 0:05:15]} 15. g3 {[%emt 0:04:23]} Qa5 {[%emt 0:05:22]} 16. c4 {[%emt 0:03:59]} Rae8 {[%emt 0:02:28]} 17. Re1 {[%emt 0:06:43]} ({Better is} 17. d5 $14) 17... Rg8 {[%emt 0:06:59]} 18. Bf1 {[%emt 0:03:05]} Bc8 {[%emt 0:03:01]} 19. Re3 {[%emt 0:05:32]} c5 {[%emt 0:03:39]} 20. c3 {[%emt 0:02:45]} Re7 {[%emt 0:01:02]} 21. h4 {[%emt 0:04:57]} exd4 {[%emt 0:06:22]} 22. cxd4 {[%emt 0:00:16]} Rge8 {[%emt 0:00:24]} 23. h5 {[%emt 0:07:03]} Nf8 {[%emt 0:02:59]} 24. Nh4 {[%emt 0:04:06] d5 is the strong threat.} cxd4 {[%emt 0:00:39]} (24... Rxe4 $2 25. Rxe4 Rxe4 26. Qf3 $18) 25. Qxd4 {[%emt 0:00:06]} Qxh5 {[%emt 0:01:30]} 26. Qxf6+ {[%emt 0:01:05]} Kg8 {[%emt 0:00:05]} 27. Qxd6 {[%emt 0:00:51]} Rxe4 {[%emt 0:02:39]} 28. Rxe4 {[%emt 0:00:05]} Rxe4 {[%emt 0:00:03]} 29. Rd1 {[%emt 0:02:41][%cal Ba1d1,Bd1b1,Bb1b5][%mdl 32]} Be6 {[%emt 0:01:30] Dodges Rd5} (29... Qe5 {is interesting.} 30. Qd8 Be6 31. Bd3 Re1) 30. Rb1 {[%emt 0:02:08]} b6 {[%emt 0:09:20] [#]} ({Don't play} 30... Bxc4 31. Bxc4 Rxc4 32. Rxb7 $16) (30... Ng6 $11 31. Rb5 Qh6) 31. Rb5 $1 $16 {[%emt 0:01:15]} Qh6 {[%emt 0:00:24]} 32. Qd8 {[%emt 0:03:09] Prevents Qf6. And now Rg5+ would win.} f6 {[%emt 0:04:33] Wards off Rg5+} 33. c5 {[%emt 0:02:06]} ({White should play} 33. Rb3 $16) 33... Rxh4+ $11 {[%emt 0:02:23] The position is equal.} (33... Bxa2 $2 34. c6 (34. cxb6 axb6 35. Qa8 Rxh4+ 36. gxh4 Qxh4+ 37. Kg1 Bf7 $16) 34... Be6 35. c7 $18) 34. gxh4 {[%emt 0:00:09]} Qxh4+ {[%emt 0:00:04]} 35. Kg1 {[%emt 0:00:15] [#] Threatens to win with c6.} Qg5+ {[%emt 0:00:41]} 36. Bg2 {[%emt 0:00:45]} Qc1+ {[%emt 0:00:09]} 37. Kh2 {[%emt 0:00:14]} Qf4+ {[%emt 0:00:11]} 38. Kg1 {[%emt 0:00:05] Weighted Error Value: White=0.17 (very precise) /Black=0.13 (very precise)} 1/2-1/2

[Event "14th Margaryan Memorial-GM 2024"]
[Site "Yerevan"]
[Date "2024.01.10"]
[Round "3.4"]
[White "Sorensen, Hampus"]
[Black "Davtyan, Arsen"]
[Result "1/2-1/2"]
[ECO "C54"]
[WhiteElo "2458"]
[BlackElo "2392"]
[Annotator "TA"]
[PlyCount "134"]
[EventDate "2024.01.08"]
[EventType "tourn"]
[EventCountry "ARM"]
[SourceTitle "playchess.com"]
[Source "ChessBase"]
[SourceQuality "1"]
[TimeControl "40/5400+30:1800+30"]

{[%evp 10,134,13,8,8,12,12,8,12,0,0,0,0,0,0,0,0,0,0,0,0,4,3,7,13,20,25,0,6,0,0,-10,-7,-1,0,-3,-8,0,0,0,-3,-45,-11,-27,-27,-40,-4,-18,0,0,0,0,0,0,0,-15,0,-39,-27,-18,0,0,0,0,0,0,0,0,0,-60,0,0,0,0,0,0,0,0,0,0,0,0,0,0,0,0,0,0,0,0,0,0,0,0,0,0,0,0,0,0,0,0,0,0,0,0,0,0,0,0,0,0,0,0,0,0,0,0,0,0,0,0,0,0,0,0,1310]} 1. e4 {[%emt 0:00:33]} e5 {[%emt 0:00:05]} 2. Nf3 {[%emt 0:00:14]} Nc6 {[%emt 0:00:06]} 3. Bc4 {[%emt 0:00:12]} Bc5 {[%emt 0:00:36]} 4. d3 {[%emt 0:00:26]} Nf6 {[%emt 0:00:06]} 5. O-O {[%emt 0:00:27]} d6 {[%emt 0:00:26]} 6. c3 {[%emt 0:00:17]} a5 {[%emt 0:00:31] is the new trend. C54: Giuoco Piano: 4 c3 Nf6, main lines with 5 d4 and 5 d3.} 7. Re1 {[%emt 0:00:59]} O-O {[%emt 0:00:07]} 8. h3 {[%emt 0:00:25]} Ba7 {[%emt 0:06:18]} 9. Bb3 {[%emt 0:15:38]} h6 {[%emt 0:09:22]} 10. d4 {[%emt 0:01:56]} Re8 {[%emt 0:01:47]} 11. Bc2 {[%emt 0:00:54]} exd4 {[%emt 0:06:52]} 12. cxd4 {[%emt 0:00:39]} Nb4 {[%emt 0:01:29]} 13. Nc3 {[%emt 0:00:43]} Nxc2 {[%emt 0:00:57]} 14. Qxc2 {[%emt 0:00:07]} c6 {[%emt 0:02:47]} 15. a3 {[%emt 0:05:26]} Be6 {[%emt 0:07:52]} 16. Be3 {[%emt 0:03:20]} Qd7 {[%emt 0:15:24]} 17. Nd2 {[%emt 0:02:51]} b5 {[%emt 0:10:39] [#]} 18. Ne2 $146 {[%emt 0:12:42]} ({Predecessor:} 18. b4 a4 19. Rac1 Rac8 20. Ne2 Bb6 21. Ng3 Qa7 22. Nf3 Bb3 23. Qb1 Qd7 24. Nd2 {1-0 Horvath,A (2458)-Priasmoro,N (2521) Budapest Vezerkepzo GM-B 03 2023 (7)}) 18... a4 {[%emt 0:08:47]} 19. Rac1 {[%emt 0:04:55]} Rac8 {[%emt 0:00:45]} 20. Qd1 {[%emt 0:12:52]} Bb3 {[%emt 0:08:02]} 21. Nxb3 {[%emt 0:00:28]} axb3 {[%emt 0:00:01]} 22. f3 {[%emt 0:11:06]} d5 $1 {[%emt 0:01:06]} 23. e5 {[%emt 0:00:44]} Rxe5 $1 {[%emt 0:00:05]} 24. dxe5 {[%emt 0:01:14]} Bxe3+ {[%emt 0:00:04]} 25. Kh1 {[%emt 0:00:11]} Bxc1 {[%emt 0:00:16]} 26. Qxc1 {[%emt 0:03:27]} (26. Nxc1 $5 {[%cal Re5f6]} Nh5 27. Qd2 $11) 26... Nh7 {[%emt 0:01:11]} 27. Nd4 {[%emt 0:00:12]} Ng5 {[%emt 0:07:25][%cal Og5h3]} 28. Nxb3 {[%emt 0:00:20]} Ne6 {[%emt 0:02:37]} (28... Nxf3 29. e6 fxe6 30. gxf3 $16) (28... Qa7 $5 {[%cal Rg5e6]}) 29. f4 {[%emt 0:01:16][%cal Bf3f4,Bf4f5][%mdl 32]} c5 {[%emt 0:01:07]} 30. f5 {[%emt 0:03:54]} Ng5 {[%emt 0:00:00]} 31. f6 {[%emt 0:04:34]} Ne4 {[%emt 0:01:11] [#] aiming for ...Nf2+.} 32. fxg7 {[%emt 0:00:25]} Rc6 {[%emt 0:01:40]} 33. Qf4 {[%emt 0:00:19] Wards off Nf2+} Rg6 {[%emt 0:03:23]} 34. Kh2 {[%emt 0:08:49]} Kxg7 {[%emt 0:01:07]} (34... Qc7 {feels hotter.} 35. Rf1 Re6 36. Kg1 Kxg7 37. Nc1 Qe7) 35. Rc1 {[%emt 0:01:20] Really sharp!} Qe7 {[%emt 0:00:54]} 36. Rd1 $1 {[%emt 0:00:17]} Qe6 {[%emt 0:00:53]} 37. Rc1 $1 {[%emt 0:02:40]} Qb6 {[%emt 0:01:21]} 38. Rd1 {[%emt 0:01:08]} Qb7 {[%emt 0:01:10]} 39. e6 {[%emt 0:00:45]} fxe6 {[%emt 0:00:55]} ({Better is} 39... Rf6 $15 40. Qe5 fxe6) 40. Nxc5 $1 $11 {[%emt 0:00:00][%mdl 64] [#] Remove Defender, Decoy. The position is equal.} Nxc5 {[%emt 0:00:00]} 41. Qd4+ {[%emt 0:15:24]} Kh7 {[%emt 0:20:43]} 42. Qxc5 {[%emt 0:00:09][%mdl 4096] Endgame KQR-KQR. Active counter play!} d4 {[%emt 0:01:14][%csl Gg6][%cal Rb7g2,Bd5d4,Bd4d3][%mdl 32]} 43. Rd2 {[%emt 0:03:39]} (43. Rxd4 $2 Qxg2#) 43... Qe4 {[%emt 0:00:43] ( -> ...Qf4+)} 44. Rf2 {[%emt 0:00:33] Prevents Qf4+} d3 {[%emt 0:02:34]} 45. Qd6 {[%emt 0:06:22]} e5 {[%emt 0:01:42]} 46. Rf7+ {[%emt 0:00:27]} Rg7 {[%emt 0:00:01][%csl Gg7][%cal Re4g2]} 47. Rf3 {[%emt 0:00:58]} Qg6 {[%emt 0:05:03]} 48. Qxg6+ {[%emt 0:00:10]} (48. Qxd3 $2 {too greedy.} e4 49. Qf1 exf3 $19) 48... Kxg6 {[%emt 0:00:01]} 49. Rxd3 {[%emt 0:00:10] Hoping for Rg3+. KR-KR} Kf5 {[%emt 0:00:07]} 50. Rb3 {[%emt 0:02:37]} Kf4 {[%emt 0:02:19]} 51. Kg1 {[%emt 0:01:24][%cal Og1f2]} Rc7 {[%emt 0:00:49]} 52. g3+ {[%emt 0:00:40]} Ke4 {[%emt 0:00:05]} 53. Kf2 {[%emt 0:00:20]} Rc2+ {[%emt 0:01:00]} 54. Ke1 {[%emt 0:00:01]} Rh2 {[%emt 0:01:07]} 55. h4 {[%emt 0:03:28]} Kd4 {[%emt 0:00:07]} 56. Rxb5 {[%emt 0:00:29]} e4 {[%emt 0:00:05]} 57. Rb8 {[%emt 0:02:01]} h5 {[%emt 0:01:06]} 58. a4 {[%emt 0:00:15]} e3 {[%emt 0:00:31]} 59. Rd8+ {[%emt 0:01:27]} Ke4 {[%emt 0:00:01]} 60. Re8+ {[%emt 0:00:11]} Kd3 {[%emt 0:00:16][%cal Rh2h1]} (60... Kf3 $5 61. Rf8+ $8 Kxg3 $11) 61. Rd8+ {[%emt 0:00:04]} Ke4 $1 {[%emt 0:00:01]} 62. b4 {[%emt 0:00:28]} Rh1+ {[%emt 0:01:45]} 63. Ke2 {[%emt 0:00:01] Threatens to win with Re8+.} Rh2+ {[%emt 0:00:01]} 64. Kd1 {[%emt 0:00:56]} Rh1+ {[%emt 0:00:02]} 65. Ke2 {[%emt 0:00:05] And now Re8+ would win.} Rh2+ {[%emt 0:00:05]} 66. Kd1 {[%emt 0:00:08]} Rh1+ {[%emt 0:01:05]} 67. Ke2 {[%emt 0:01:32] Re8+ is the strong threat.} Ke5 $2 {[%emt 0:02:03][%mdl 40960] Weighted Error Value: White=0.05 (flawless) /Black=0.04 (flawless) . An unexpected result.} (67... Rh2+ $11 68. Kf1 Rh1+ 69. Kg2 Rb1 70. Re8+ Kd3 71. Rd8+ (71. Kf3 $2 Rf1+ 72. Kg2 e2 $19) 71... Ke4 72. Re8+ Kd3 73. Rd8+ (73. Kf3 $2 Rf1+ 74. Kg2 e2 $19) 73... Ke4) 1/2-1/2

[Event "14th Margaryan Memorial-GM 2024"]
[Site "Yerevan"]
[Date "2024.01.10"]
[Round "3.5"]
[White "Grebnev, Aleksey"]
[Black "Ivanov, Sergey"]
[Result "1/2-1/2"]
[ECO "D32"]
[WhiteElo "2535"]
[BlackElo "2462"]
[Annotator "TA"]
[PlyCount "97"]
[EventDate "2024.01.08"]
[EventType "tourn"]
[EventCountry "ARM"]
[SourceTitle "playchess.com"]
[Source "ChessBase"]
[SourceQuality "1"]
[TimeControl "40/5400+30:1800+30"]

{[%evp 16,97,10,15,16,0,0,0,0,0,23,0,22,7,14,0,0,0,25,18,70,62,79,64,77,79,68,56,40,28,61,69,91,0,0,0,0,0,0,0,81,72,72,72,72,74,90,0,0,0,0,-85,0,0,0,0,0,0,0,0,0,0,0,0,0,0,0,0,0,0,0,0,0,0,0,0,0,0,0,0,0,0,0,0]} 1. Nf3 {[%emt 0:00:14]} Nf6 {[%emt 0:00:19]} 2. c4 {[%emt 0:00:19]} e6 {[%emt 0:00:06]} 3. Nc3 {[%emt 0:00:07]} d5 {[%emt 0:00:14]} 4. e3 {[%emt 0:00:09]} c5 {[%emt 0:00:49]} 5. cxd5 {[%emt 0:00:10]} exd5 {[%emt 0:00:06]} 6. d4 {[%emt 0:00:07]} Nc6 {[%emt 0:00:10]} 7. Bb5 {[%emt 0:00:08]} cxd4 {[%emt 0:00:32] now supersedes 7...Bd6.} 8. Nxd4 {[%emt 0:00:09]} Bd7 {[%emt 0:00:10][%cal Bc8d7,Bd7g4,Bg4h5][%mdl 32]} 9. O-O {[%emt 0:00:09]} Bd6 {[%emt 0:00:14] D32: Tarrasch Defence: Sidelines and lines without g3.} 10. Nf3 {[%emt 0:00:50]} Bg4 {[%emt 0:00:35]} 11. h3 {[%emt 0:00:11]} (11. Nxd5 $2 Nxd5 12. h3 Bxf3 13. Qxf3 O-O $19) 11... Bh5 {[%emt 0:00:09]} 12. b3 {[%emt 0:00:23]} (12. Nxd5 $2 Nxd5 13. e4 (13. Qxd5 $2 Bh2+ {[%mdl 64] Discovered Attack} 14. Nxh2 Qxd5 $19) (13. g4 $2 Bg6 $19) 13... Nde7 $19) 12... O-O {[%emt 0:00:42]} 13. Bb2 {[%emt 0:00:53][%cal Ob5e2]} (13. Nxd5 $2 Nxd5 14. Bb2 Re8 $19) 13... Rc8 {[%emt 0:07:28]} 14. Rc1 {[%emt 0:04:53] [#]} (14. Nxd5 $2 Nxd5 15. Rc1 (15. Qxd5 $2 Bh2+ {[%mdl 64] Discovered Attack} 16. Nxh2 Qxd5 $19) (15. g4 $2 Bg6 $19) 15... Re8 $19) 14... Re8 $146 {[%emt 0:02:52]} ({Predecessor:} 14... Bb8 15. Be2 a6 16. Nd4 Nxd4 17. exd4 Qd6 18. g3 Bg6 19. Bf3 Ne4 20. Bg2 h5 21. Nxe4 dxe4 22. Rxc8 Rxc8 {0-1 Galchenko,M (2440)-Shuvalova,P (2492) Chigorin Memorial 29th 2022 (7)}) 15. Ne2 {[%emt 0:09:59]} (15. Nxd5 $2 {perishes.} Nxd5 16. Qe2 (16. Qxd5 $2 Bh2+ {[%mdl 64] Discovered Attack} 17. Kxh2 Qxd5 $19) (16. g4 $2 Bg6 $19) 16... Nf4 $19) 15... Bxf3 {[%emt 0:18:07]} 16. gxf3 {[%emt 0:00:12][%cal Bg2f3,Bf3f4][%mdl 32]} Qd7 {[%emt 0:01:57]} 17. Kg2 {[%emt 0:14:21]} Qf5 {[%emt 0:00:44]} (17... Be5 $11 18. Bxe5 Rxe5) 18. f4 $1 $14 {[%emt 0:04:44]} a6 {[%emt 0:27:14]} 19. Bd3 {[%emt 0:03:13]} Qe6 {[%emt 0:00:28]} 20. Ng3 {[%emt 0:01:51] [#] Black must now prevent Bf5.} g6 {[%emt 0:01:04] Repels Bf5} 21. Qf3 {[%emt 0:11:03] f5 is the strong threat.} (21. Be2 $5) 21... Ne4 {[%emt 0:01:40]} 22. Rfd1 {[%emt 0:00:09] Against Nd2. And now Nxe4 would win.} Nxg3 {[%emt 0:08:19]} 23. Qxg3 {[%emt 0:03:23]} Qe7 {[%emt 0:03:11]} 24. Be2 {[%emt 0:06:18] White is more active. This pair of bishops is nice.} ({Better is} 24. h4 $16) 24... Ba3 $11 {[%emt 0:01:13]} 25. Bxa3 {[%emt 0:11:08]} Qxa3 {[%emt 0:00:10]} 26. Bf3 {[%emt 0:00:05]} Qxa2 {[%emt 0:08:32]} 27. Bxd5 {[%emt 0:00:30]} Qb2 {[%emt 0:04:08]} (27... Ne7 $1 $11 28. Qf3 (28. Bxb7 $2 {too greedy.} Rxc1 29. Rxc1 Nf5 $19 {[%mdl 64] Deflection}) 28... Rxc1 29. Rxc1 Qa3) 28. Qf3 {[%emt 0:03:50]} Kg7 {[%emt 0:02:06]} 29. Rc5 {[%emt 0:08:51]} Qf6 {[%emt 0:04:13]} 30. Rdc1 {[%emt 0:01:17]} Rc7 {[%emt 0:00:49]} 31. e4 {[%emt 0:05:23]} ({Of course not} 31. Bxc6 $6 Rec8 $11) (31. b4 $16) 31... Nd4 $1 {[%emt 0:03:05]} 32. e5 {[%emt 0:02:42]} Qf5 {[%emt 0:00:21]} 33. Qg4 {[%emt 0:01:59]} (33. Qe3 $11 {remains equal.} Rxc5 34. Rxc5) 33... Rxc5 {[%emt 0:00:33]} (33... Rd7 $17 {aiming for ...Red8.} 34. Qxf5 gxf5) 34. Qxf5 {[%emt 0:00:41] The position is equal.} gxf5 {[%emt 0:01:13]} 35. Rxc5 {[%emt 0:00:05]} Ne6 {[%emt 0:00:09]} 36. Bxe6 {[%emt 0:00:59]} Rxe6 {[%emt 0:00:02][%mdl 4096] Endgame KR-KR} 37. Rc4 {[%emt 0:00:37]} a5 {[%emt 0:01:51]} 38. Rc5 {[%emt 0:00:37]} Rb6 {[%emt 0:00:21]} 39. Rxa5 {[%emt 0:00:05]} Rxb3 {[%emt 0:00:06]} 40. Rd5 {[%emt 0:00:00]} Rb4 {[%emt 0:00:00]} 41. Kg3 {[%emt 0:15:54]} Rb3+ {[%emt 0:18:20]} 42. f3 {[%emt 0:01:24]} h6 {[%emt 0:01:00]} 43. Rd6 {[%emt 0:01:24]} b5 {[%emt 0:02:12]} 44. Rf6 {[%emt 0:03:24]} b4 {[%emt 0:02:18]} 45. Rb6 {[%emt 0:05:00]} Rb1 {[%emt 0:01:20]} 46. Rb7 {[%emt 0:00:16]} Kg6 {[%emt 0:01:41]} 47. Rb6+ {[%emt 0:00:08]} Kg7 {[%emt 0:00:30]} 48. Rb7 {[%emt 0:00:06]} Kg6 {[%emt 0:01:37]} 49. Rb6+ {[%emt 0:00:08] Weighted Error Value: White=0.11 (very precise) /Black=0.11 (very precise)} 1/2-1/2

[Event "14th Margaryan Memorial-GM 2024"]
[Site "Yerevan"]
[Date "2024.01.11"]
[Round "4.1"]
[White "Babujian, Levon"]
[Black "Ivanov, Sergey"]
[Result "0-1"]
[ECO "D38"]
[WhiteElo "2346"]
[BlackElo "2462"]
[Annotator "TA"]
[PlyCount "120"]
[EventDate "2024.01.08"]
[EventType "tourn"]
[EventCountry "ARM"]
[SourceTitle "playchess.com"]
[Source "ChessBase"]
[SourceQuality "1"]
[TimeControl "40/5400+30:1800+30"]

{[%evp 12,120,20,20,20,20,10,19,16,0,16,0,0,0,0,-6,1,-200,-155,-204,-170,-167,-114,-107,-79,-70,-66,-224,-98,-196,-177,-172,-144,-405,-399,-429,-414,-490,-508,-761,-740,-673,-581,-832,-591,-546,-356,-362,-343,-739,-704,-684,-214,-197,-202,-213,-189,-213,-209,-432,-432,-442,-439,-432,-432,-429,-407,-739,-727,-29963,-29964,-29962,-29965,-29965,-29966,-29966,-29967,-29967,-29968,-29968,-29957,-29969,-29970,-29973,-29974,-29974,-29975,-29975,-29976,-29978,-29978,-29981,-29979,-29981,-29982,-29982,-29980,-29986,-29980,-29980,-29981,-29981,-29982,-29979,-29981,-29986,-29987,-29988,-29986,-29994,-29978]} 1. d4 {[%emt 1:31:00]} Nf6 {[%emt 1:31:00]} 2. c4 {[%emt 0:00:30]} e6 {[%emt 0:00:30]} 3. Nc3 {[%emt 0:00:30]} Bb4 {[%emt 0:00:30]} 4. Nf3 {[%emt 0:00:30]} d5 {[%emt 0:00:30]} 5. cxd5 {[%emt 0:00:30]} exd5 {[%emt 0:00:30]} 6. Bg5 {[%emt 0:00:30]} h6 {[%emt 0:00:30]} 7. Bh4 {[%emt 0:00:30]} O-O {[%emt 0:00:30] D38: Queen's Gambit Declined: Ragozin Defence (4 Nf3 Bb4).} 8. e3 {[%emt 0:00:30]} Bf5 {[%emt 0:00:30]} 9. Qb3 {[%emt 0:00:30]} Bxc3+ {[%emt 0:00:30] The position is equal.} 10. bxc3 {[%emt 0:00:30][%cal Oh4f6]} Nbd7 {[%emt 0:00:30]} 11. Qxb7 {[%emt 0:00:30]} Rb8 {[%emt 0:00:30]} 12. Qxa7 {[%emt 0:00:30]} Qe7 {[%emt 0:00:30] Against Qa3} 13. Be2 {[%emt 0:00:30]} (13. Qxc7 $2 Qa3 $19) 13... Rb2 {[%emt 0:00:30] [#]} 14. Qxc7 $146 {[%emt 0:00:00]} (14. Ne5 $11) ({Predecessor:} 14. Bd1 g5 15. Bg3 Bd3 16. Qxc7 Ng4 17. Ne5 Ngxe5 18. Bxe5 Qe6 19. g4 Nxe5 20. dxe5 Qa6 21. Qc5 Be4 22. a4 Rc8 {0-1 Wilson,N (2255)-Laduke,M (2186) FICGS W-ch st1 gN 01 email 2022 (1)}) 14... Qe4 {[%emt 0:00:00][%cal Ob2e2]} 15. Rd1 {[%emt 0:00:00]} (15. O-O $17 Rxe2 16. a4) 15... g5 {[%emt 0:00:00]} (15... Qc2 16. Rd2 Rb1+ 17. Rd1 (17. Bd1 $2 Qc1 $19)) 16. Bg3 {[%emt 0:00:00]} (16. Bd3 Qxd3 17. Rxd3 Bxd3 $19) 16... Rfb8 $40 {[%emt 0:00:00][%mdl 128] Black wants a kill.} (16... Qc2 17. Rd2 Rb1+ 18. Bd1 $17) (16... Ra8 $19 17. a4 (17. Bd3 $2 Qxd3 18. Rxd3 Bxd3 $19) 17... Rxe2+ {[%mdl 64] Decoy} 18. Kxe2 Qc2+ 19. Rd2 Qxa4) 17. Nd2 {[%emt 0:00:00]} (17. Bd3 $2 Qxd3 18. Rxd3 Bxd3 $19) 17... Qxg2 {[%emt 0:00:00]} 18. Bf3 {[%emt 0:00:00]} Qh3 {[%emt 0:00:00] The board is on fire. Black is much more active. The white rooks are badly placed.} 19. Rg1 $2 {[%emt 0:00:00]} ({White should play} 19. Qa5 $1 $15 R8b6 20. c4 (20. Bxd5 Nxd5 21. Qxd5 Ra6 $17)) 19... Bg4 {[%emt 0:00:00]} (19... Bc2 $19 {has better winning chances.} 20. Rc1 Ra8) 20. Bxg4 {[%emt 0:00:00]} (20. Bg2 $17 {only move.} Qh5 21. f3) 20... Qxg4 $19 {[%emt 0:00:00]} 21. f3 {[%emt 0:00:00]} Qe6 {[%emt 0:00:00][%mdl 1024] Black has strong compensation.} 22. Be5 $2 {[%emt 0:00:00][%mdl 8192]} (22. Bf2 $17 {is the only way for White.}) 22... Ne8 {[%emt 0:00:00]} (22... Rxa2 23. c4 dxc4 24. Qxc4 Nxe5 25. Qxe6 (25. dxe5 $2 Rxd2 26. Qxe6 Rxd1+ 27. Kxd1 fxe6 $19) 25... Nxf3+ 26. Nxf3 $17) (22... Qa6 $2 23. Bxf6 (23. c4 $2 Rc8 $19) 23... Nxf6 24. Qf4 $19 (24. c4 $2 Re8 $19 {[%mdl 64] Deflection})) 23. Qa7 {[%emt 0:00:00]} R8b7 {[%emt 0:00:00]} (23... Nxe5 $2 24. dxe5 Qh3 25. Rf1 Qxh2 26. Rf2 $19) 24. Qa4 {[%emt 0:00:00]} f6 {[%emt 0:00:00]} (24... Nxe5 25. dxe5 Qxe5 26. Qd4 Qxh2 27. Rf1 $19) 25. h4 {[%emt 0:00:53]} fxe5 {[%emt 0:00:00]} 26. hxg5 {[%emt 0:00:03]} h5 {[%emt 0:00:00] Threatens to win with ...Nd6.} 27. g6 {[%emt 0:00:17]} exd4 {[%emt 0:00:00]} 28. Qxd4 {[%emt 0:00:06]} Rxa2 {[%emt 0:00:00]} 29. Rg5 {[%emt 0:00:55]} Ndf6 {[%emt 0:00:00]} 30. Kf2 $2 {[%emt 0:00:23]} (30. Re5 Qa6 31. Kf2) 30... Rbb2 {[%emt 0:00:00]} 31. Kg1 {[%emt 0:00:03]} Qb6 $2 {[%emt 0:00:00]} (31... Nd6 {...Nf5 is the strong threat.} 32. Qe5 Qxe5 33. Rxe5 Rxd2 34. Rxd2 Rxd2) 32. Rxd5 {[%emt 0:02:16]} Qxd4 $1 {[%emt 0:04:45]} 33. Rxd4 {[%emt 0:00:03]} Kg7 {[%emt 0:00:08]} 34. e4 {[%emt 0:01:44]} Nc7 $1 {[%emt 0:01:11][%cal Oc7e6]} 35. e5 $2 {[%emt 0:02:33]} (35. Rd6) 35... Nfd5 {[%emt 0:00:21]} 36. Nf1 {[%emt 0:01:02]} Nxc3 {[%emt 0:02:52]} (36... Kxg6 $2 37. c4 Nc3 38. Rd6+ Kf5 39. R1d2 $19) 37. Rd7+ {[%emt 0:00:03]} Kxg6 {[%emt 0:00:07]} (37... Kh6 $2 38. R1d6 $19) 38. R1d6+ {[%emt 0:00:29] [#]} Kg5 $1 {[%emt 0:00:39]} (38... Kf5 39. Rxc7 Ne2+ 40. Kh2 $15 (40. Kh1 $2 Rb1 $19)) 39. Rg7+ {[%emt 0:01:36]} (39. Rd2 $142 Ne6 40. Rxb2 Rxb2 41. Rd2) 39... Kf4 {[%emt 0:00:02]} 40. Rxc7 {[%emt 0:00:00]} Ne2+ {[%emt 0:00:00] Black mates.} ({Stronger than} 40... Kxe5 41. Rdd7 $11) 41. Kg2 {[%emt 0:18:33]} Ng3+ {[%emt 0:18:15]} (41... Kxe5 42. Rdd7 $11) 42. Nd2 {[%emt 0:01:01]} Rxd2+ {[%emt 0:01:11]} 43. Rxd2 {[%emt 0:00:02]} Rxd2+ {[%emt 0:00:11] KRN-KR} 44. Kh3 {[%emt 0:00:01]} Nf5 {[%emt 0:01:08]} ({Weaker is} 44... Kxf3 45. Rf7+ Ke4 46. Kxg3 $11) 45. e6 {[%emt 0:00:30]} Rd3 {[%emt 0:03:57]} 46. Rc4+ {[%emt 0:01:26]} Kg5 {[%emt 0:00:35]} 47. Re4 {[%emt 0:00:05]} Rxf3+ {[%emt 0:00:32]} 48. Kg2 {[%emt 0:00:04] [#]} Re3 $1 {[%emt 0:00:17]} ({Worse is} 48... Rg3+ 49. Kf2 $15) 49. Ra4 {[%emt 0:00:55]} Rxe6 {[%emt 0:00:09]} 50. Rb4 {[%emt 0:00:13]} Re3 {[%emt 0:00:33]} 51. Ra4 {[%emt 0:00:06]} Rb3 {[%emt 0:00:17]} 52. Ra5 {[%emt 0:00:19]} h4 {[%emt 0:00:56]} 53. Kh2 {[%emt 0:00:02]} Rd3 {[%emt 0:00:27]} 54. Ra4 {[%emt 0:00:40]} Nd4 {[%emt 0:01:19]} 55. Ra8 {[%emt 0:00:07]} Nf3+ {[%emt 0:00:14]} 56. Kg2 {[%emt 0:00:14]} Kg4 {[%emt 0:00:15]} 57. Rg8+ {[%emt 0:01:07]} Ng5 {[%emt 0:00:10]} 58. Kh2 {[%emt 0:01:07]} Rd2+ {[%emt 0:00:30]} 59. Kh1 {[%emt 0:00:22]} Kf4 {[%emt 0:00:54]} 60. Ra8 {[%emt 0:00:38]} Ke5 {[%emt 0:11:35] Weighted Error Value: White=0.86/Black=0.39} 0-1